[Event "Warsaw Chess Open-B 2022"]
[Site "Warsaw"]
[Date "2022.07.21"]
[Round "4.5"]
[White "Ryszkiewicz, Adam"]
[Black "Seklecki, Jakub"]
[Result "1-0"]
[ECO "D37"]
[WhiteElo "1977"]
[BlackElo "1501"]
[Annotator "TA"]
[PlyCount "59"]
[EventDate "2022.07.18"]
[EventType "swiss"]
[EventCountry "POL"]
[SourceTitle "playchess.com"]
[Source "ChessBase"]
[SourceQuality "1"]
[TimeControl "40/5400+30:1800+30"]

{[%evp 13,59,29,38,2,10,17,23,14,15,28,14,4,7,2,10,0,6,0,8,7,0,0,10,0,14,8,389,391,379,385,635,640,727,637,638,631,612,575,555,565,829,810,29995,29996,29996,29997,29998,29999]} 1. d4 {[%emt 0:00:03]} Nf6 {[%emt 0:00:08]} 2. c4 {[%emt 0:00:04]} e6 {[%emt 0:00:06]} 3. Nc3 {[%emt 0:00:04]} d5 {[%emt 0:00:26]} 4. Nf3 {[%emt 0:00:32]} dxc4 {[%emt 0:00:50]} 5. e3 {[%emt 0:02:48]} a6 {[%emt 0:01:18]} 6. a4 {[%emt 0:00:27]} Nbd7 {[%emt 0:01:55]} 7. Bxc4 {[%emt 0:00:10]} c5 {[%emt 0:00:44]} 8. a5 {[%emt 0:02:01] D26: Queen's Gambit Accepted: 4 e3 e6 5 Bxc5 c5 sidelines.} b5 {[%emt 0:06:38]} 9. axb6 $1 {[%emt 0:01:28]} Nxb6 {[%emt 0:02:00]} 10. Be2 {[%emt 0:02:25] [#] White has an edge.} Be7 $146 {[%emt 0:02:05]} ({Predecessor:} 10... Bb7 11. O-O cxd4 12. exd4 Be7 13. Qb3 O-O 14. Be3 Nfd5 15. Na4 a5 {1-0 (32) Gurbanov,A (2355)-Tersinsev,A (2022) Bratislava 2015}) 11. O-O {[%emt 0:02:43]} O-O {[%emt 0:00:11]} 12. Qb3 {[%emt 0:00:31]} Qc7 {[%emt 0:03:04]} 13. dxc5 {[%emt 0:02:20]} Bxc5 {[%emt 0:01:57]} 14. Bd2 {[%emt 0:01:03]} Qe7 {[%emt 0:12:03]} 15. Na4 {[%emt 0:08:24]} Nxa4 {[%emt 0:04:11]} 16. Rxa4 {[%emt 0:00:37]} Bb7 {[%emt 0:13:27]} 17. Rfa1 {[%emt 0:04:44]} Qd7 {[%emt 0:05:45]} 18. Qc2 {[%emt 0:05:28]} Rfc8 {[%emt 0:03:15][%cal Oc5e3]} 19. Bc3 {[%emt 0:01:08] [#] Hoping for Bxf6.} ({Much weaker is} 19. Bxa6 Bxa6 20. Rxa6 Rxa6 21. Rxa6 Bxe3 $15) 19... Qd6 $2 {[%emt 0:05:55][%mdl 8192] This costs Black the game.} (19... Nd5 $11) 20. Bxf6 $18 {[%emt 0:07:53]} gxf6 {[%emt 0:00:51]} 21. Rg4+ {[%emt 0:00:07][%cal Ba4g4,Bg4g7,Bg7f7][%mdl 32]} ({Inferior is} 21. Rh4 f5 $11) 21... Kf8 $2 {[%emt 0:07:04]} (21... Kh8 22. Rh4 f5 23. Qc3+ Kg8) 22. Qxh7 {[%emt 0:02:27] aiming for Rg7.} Ke7 {[%emt 0:00:02]} 23. Rg7 {[%emt 0:00:52]} Rf8 {[%emt 0:00:09]} 24. Nh4 {[%emt 0:00:53]} Ke8 {[%emt 0:10:20]} 25. Rd1 {[%emt 0:03:25]} Qc7 {[%emt 0:05:02]} 26. Rc1 {[%emt 0:02:20]} Qb6 {[%emt 0:00:58][%cal Ob6b2]} 27. Bh5 {[%emt 0:01:10][%cal Rh5f7]} Bxe3 {[%emt 0:02:02] [#]} 28. Rxf7 $1 {[%emt 0:00:31] White mates.} Bxf2+ {[%emt 0:01:07]} 29. Kh1 {[%emt 0:00:06]} Rxf7 {[%emt 0:00:57]} 30. Qxf7+ {[%emt 0:00:06] Weighted Error Value: White=0.10 (very precise) /Black=0.93} 1-0

[Event "Warsaw Chess Open-B 2022"]
[Site "Warsaw"]
[Date "2022.07.21"]
[Round "4.6"]
[White "Smykalo, Severyn"]
[Black "Malicki, Jan"]
[Result "1-0"]
[ECO "D91"]
[WhiteElo "1921"]
[BlackElo "1416"]
[Annotator "TA"]
[PlyCount "33"]
[EventDate "2022.07.18"]
[EventType "swiss"]
[EventCountry "POL"]
[SourceTitle "playchess.com"]
[Source "ChessBase"]
[SourceQuality "1"]
[TimeControl "40/5400+30:1800+30"]

{[%evp 14,33,34,31,67,58,56,60,73,57,84,87,242,230,247,250,482,359,930,739,29994,29995]} 1. d4 {[%emt 0:00:09]} Nf6 {[%emt 0:00:09]} 2. c4 {[%emt 0:00:17]} g6 {[%emt 0:00:07]} 3. Nc3 {[%emt 0:00:05]} d5 {[%emt 0:00:06]} 4. Nf3 {[%emt 0:00:15]} Bg7 {[%emt 0:00:13]} 5. Bg5 {[%emt 0:00:42]} c6 {[%emt 0:00:36]} 6. e3 {[%emt 0:00:55]} O-O {[%emt 0:00:24]} 7. Qb3 {[%emt 0:00:50]} dxc4 {[%emt 0:01:36]} 8. Bxc4 {[%emt 0:00:27]} Qb6 {[%emt 0:01:46] D91: Grünfeld: 4 Nf3 Bg7 5 Bg5.} 9. Qa3 {[%emt 0:02:18]} Nbd7 {[%emt 0:03:56]} 10. O-O {[%emt 0:04:33] [#]} h6 $146 {[%emt 0:02:33] White is slightly better.} ({Predecessor:} 10... e6 11. Rac1 h6 12. Bh4 a5 13. Rfd1 Qc7 14. Bg3 Qd8 15. Bd3 Nb6 16. Bd6 Re8 {1-0 (30) Kaya,M (1457)-Satilmis,R (1362) Konya 2017}) 11. Bh4 {[%emt 0:01:13] 0x0.00144c2da64bdp-1022s more active pieces. The black rooks are badly placed.} g5 {[%emt 0:01:17]} 12. Bg3 {[%emt 0:01:24]} Nh5 $2 {[%emt 0:02:25] [#]} (12... a5 $16) 13. Qxe7 $18 {[%emt 0:03:10]} Nxg3 {[%emt 0:00:11]} 14. fxg3 {[%emt 0:01:02][%cal Of3g5] Strongly threatening Nxg5!} ({Don't do} 14. hxg3 $6 Bf6 15. Qe4 Bg7) 14... Qxb2 $2 {[%emt 0:12:08]} (14... Qd8 {keeps fighting.} 15. Bxf7+ Kh8 16. Qxd8 Rxd8) 15. Ne4 {[%emt 0:01:27]} Qb6 $2 {[%emt 0:02:43] [#]} (15... Nb6) 16. Nfxg5 $1 {[%emt 0:04:16][%cal Rf1f7][%mdl 512]} hxg5 {[%emt 0:00:21]} (16... Qd8 17. Rxf7) 17. Rxf7 {[%emt 0:00:12] White took control after the opening.  Weighted Error Value: White=0.26 (precise) /Black=1.22} 1-0

[Event "Warsaw Chess Open-B 2022"]
[Site "Warsaw"]
[Date "2022.07.21"]
[Round "4.7"]
[White "Szymkiewicz, Witold"]
[Black "Vasynda, Oleksandr"]
[Result "1/2-1/2"]
[ECO "D02"]
[WhiteElo "1642"]
[BlackElo "1802"]
[Annotator "NA RC COMBH"]
[PlyCount "110"]
[EventDate "2022.07.18"]
[EventType "swiss"]
[EventCountry "POL"]
[SourceTitle "playchess.com"]
[Source "ChessBase"]
[SourceQuality "1"]
[TimeControl "40/5400+30:1800+30"]

1. d4 {[%emt 0:00:01]} d5 {[%emt 0:00:10]} 2. Nf3 {[%emt 0:00:09]} Nf6 {[%emt 0:00:11]} 3. Bf4 {[%emt 0:00:31]} c5 {[%emt 0:01:32]} 4. e3 {[%emt 0:00:47]} Nc6 {[%emt 0:00:15]} 5. c3 {[%emt 0:02:38]} Qb6 {[%emt 0:00:41]} 6. Qc1 {[%emt 0:02:12]} Bf5 {[%emt 0:03:10]} 7. Nbd2 {[%emt 0:01:39]} h6 {[%emt 0:00:26]} 8. Be2 {[%emt 0:02:00]} e6 {[%emt 0:01:09]} 9. O-O {[%emt 0:00:21]} Rc8 {[%emt 0:00:09]} 10. dxc5 {[%emt 0:04:18]} Bxc5 {[%emt 0:00:32]} 11. Nb3 {[%emt 0:01:32]} Be7 {[%emt 0:01:32]} 12. Nbd4 {[%emt 0:02:02]} Bh7 {[%emt 0:01:34]} 13. Nxc6 {[%emt 0:02:10]} bxc6 {[%emt 0:05:44]} 14. Ne5 {[%emt 0:03:41]} O-O {[%emt 0:05:11]} 15. Bd3 {[%emt 0:02:31]} Rfd8 {[%emt 0:01:02]} 16. Bxh7+ {[%emt 0:00:49]} Nxh7 {[%emt 0:00:04]} 17. Qc2 {[%emt 0:21:08]} Nf6 {[%emt 0:02:32]} 18. h3 {[%emt 0:10:40]} Ne4 {[%emt 0:06:54]} 19. Rfd1 {[%emt 0:03:28]} Nd6 {[%emt 0:01:50]} 20. b3 {[%emt 0:00:47]} Bf6 {[%emt 0:01:28]} 21. Rac1 {[%emt 0:01:36]} Nf5 {[%emt 0:00:58]} 22. e4 {[%emt 0:03:15]} Nd6 {[%emt 0:02:25]} 23. exd5 {[%emt 0:05:21]} cxd5 {[%emt 0:00:08]} 24. Rd3 {[%emt 0:05:59]} Qa5 {[%emt 0:07:00]} 25. Ng4 {[%emt 0:03:09]} Be7 {[%emt 0:03:57]} 26. Bxd6 {[%emt 0:04:40]} Rxd6 {[%emt 0:01:37]} 27. f4 {[%emt 0:06:50]} h5 {[%emt 0:04:12]} 28. Ne5 {[%emt 0:01:04]} Bf6 {[%emt 0:03:40]} 29. Qe2 {[%emt 0:02:19]} g6 {[%emt 0:02:49]} 30. Rg3 {[%emt 0:00:31]} Kf8 {[%emt 0:01:00]} 31. Qd3 {[%emt 0:00:58]} Rc7 {[%emt 0:04:46]} 32. Rf1 {[%emt 0:02:28]} Ke7 {[%emt 0:05:05]} 33. Re3 {[%emt 0:03:12]} Kd8 {[%emt 0:02:00]} 34. Nc4 {[%emt 0:00:57]} Qxc3 {[%emt 0:06:10]} 35. Qxc3 {[%emt 0:01:08]} Bxc3 {[%emt 0:00:09]} 36. Nxd6 {[%emt 0:00:05]} Bd4 {[%emt 0:00:06]} 37. Kf2 {[%emt 0:00:59]} a6 {[%emt 0:00:33]} 38. Rd1 {[%emt 0:00:52]} Bxe3+ {[%emt 0:00:31]} 39. Kxe3 {[%emt 0:00:03]} Ke7 {[%emt 0:00:20]} 40. Nxf7 {[%emt 0:00:36]} Kxf7 {[%emt 0:00:31]} 41. Kd3 {[%emt 0:30:37]} Kf6 {[%emt 0:31:47]} 42. g4 {[%emt 0:00:03]} hxg4 {[%emt 0:00:06]} 43. hxg4 {[%emt 0:00:01]} g5 {[%emt 0:00:05]} 44. fxg5+ {[%emt 0:00:53]} Kxg5 45. Kd4 {[%emt 0:00:11]} Kxg4 {[%emt 0:04:35]} 46. Ke5 {[%emt 0:00:33]} Rc6 {[%emt 0:00:15]} 47. Rf1 {[%emt 0:00:22]} Kg3 {[%emt 0:00:36]} 48. Rf8 {[%emt 0:00:30]} Kg2 {[%emt 0:00:32]} 49. b4 {[%emt 0:00:44]} Rc4 {[%emt 0:01:05]} 50. Kxe6 {[%emt 0:00:10]} d4 {[%emt 0:00:47]} 51. Kd5 {[%emt 0:01:19]} Rxb4 {[%emt 0:00:40]} 52. Rf4 {[%emt 0:00:14]} Ra4 {[%emt 0:00:56]} 53. Rxd4 {[%emt 0:00:25]} Rxa2 {[%emt 0:00:03]} 54. Rf4 {[%emt 0:00:22]} Ra5+ {[%emt 0:00:48]} 55. Kc6 {[%emt 0:00:10]} Ra1 {[%emt 0:00:11]} 1/2-1/2

[Event "Warsaw Chess Open-B 2022"]
[Site "Warsaw"]
[Date "2022.07.21"]
[Round "4.8"]
[White "Terkiewicz, Bruno"]
[Black "Bem, Tymoteusz"]
[Result "0-1"]
[ECO "B31"]
[WhiteElo "1473"]
[BlackElo "1679"]
[Annotator "NA RC COMBH"]
[PlyCount "43"]
[EventDate "2022.07.18"]
[EventType "swiss"]
[EventCountry "POL"]
[SourceTitle "playchess.com"]
[Source "ChessBase"]
[SourceQuality "1"]
[TimeControl "40/5400+30:1800+30"]

1. e4 {[%emt 0:00:06]} c5 {[%emt 0:00:20]} 2. Nf3 {[%emt 0:00:05]} Nc6 {[%emt 0:00:23]} 3. Bb5 {[%emt 0:00:07]} g6 {[%emt 0:00:21]} 4. Bxc6 {[%emt 0:00:03]} bxc6 {[%emt 0:00:14]} 5. O-O {[%emt 0:00:22]} Bg7 {[%emt 0:00:33]} 6. d3 {[%emt 0:00:20]} e5 {[%emt 0:05:48]} 7. h3 {[%emt 0:06:09]} Ne7 {[%emt 0:02:44]} 8. Be3 {[%emt 0:01:00]} d6 {[%emt 0:01:09]} 9. Nbd2 {[%emt 0:00:47]} O-O {[%emt 0:07:29]} 10. Nc4 {[%emt 0:11:44]} h6 {[%emt 0:08:55]} 11. Qe2 {[%emt 0:16:12]} f5 {[%emt 0:14:30]} 12. Rad1 {[%emt 0:16:43]} Be6 {[%emt 0:13:29]} 13. Bc1 {[%emt 0:12:57]} Qd7 {[%emt 0:10:17]} 14. c3 {[%emt 0:13:19]} Rad8 {[%emt 0:12:43]} 15. Rfe1 {[%emt 0:02:00]} g5 {[%emt 0:03:19]} 16. exf5 {[%emt 0:09:19]} Bxf5 {[%emt 0:01:26]} 17. Ne3 {[%emt 0:01:22]} Be6 {[%emt 0:01:31]} 18. d4 {[%emt 0:06:07]} cxd4 {[%emt 0:01:12]} 19. cxd4 {[%emt 0:00:04]} e4 {[%emt 0:00:12]} 20. Nd2 {[%emt 0:00:17]} d5 {[%emt 0:05:47]} 21. Nb3 {[%emt 0:00:22]} Qd6 {[%emt 0:01:02]} 22. Nc5 0-1

[Event "Warsaw Chess Open-B 2022"]
[Site "Warsaw"]
[Date "2022.07.22"]
[Round "5.1"]
[White "Kowalczyk, Adam"]
[Black "Posuniak, Weronika"]
[Result "1/2-1/2"]
[ECO "B10"]
[WhiteElo "1944"]
[BlackElo "1895"]
[Annotator "TA"]
[PlyCount "56"]
[EventDate "2022.07.18"]
[EventType "swiss"]
[EventCountry "POL"]
[SourceTitle "playchess.com"]
[Source "ChessBase"]
[SourceQuality "1"]
[TimeControl "40/5400+30:1800+30"]

{[%evp 9,56,67,73,62,82,63,70,64,83,75,99,96,144,133,133,119,131,131,158,119,245,252,247,145,136,143,149,67,130,37,40,43,38,36,58,30,36,30,32,31,32,6,15,5,10,7,76,48,65]} 1. e4 {[%emt 0:00:02]} c6 {[%emt 0:00:04]} 2. Nc3 {[%emt 0:00:17]} d5 {[%emt 0:00:16]} 3. Nf3 {[%emt 0:00:04]} dxe4 {[%emt 0:01:26]} 4. Nxe4 {[%emt 0:00:06]} e6 {[%emt 0:00:49]} 5. d4 {[%emt 0:01:18]} Nd7 {[%emt 0:00:31]} 6. Bf4 {[%emt 0:04:48] C10: French with 3 Nc3: Unusual Black 3rd moves and 3...dxe4.} Ngf6 {[%emt 0:07:14]} 7. Nd6+ {[%emt 0:10:50]} Bxd6 {[%emt 0:00:08]} 8. Bxd6 {[%emt 0:00:04][%cal Bf4d6,Bd6a3,Ba3d6][%mdl 32]} Ne4 {[%emt 0:01:16]} 9. Ba3 {[%emt 0:01:34]} Qa5+ {[%emt 0:02:29] [#]} 10. c3 $146 {[%emt 0:00:17]} ({Predecessor:} 10. Nd2 Qf5 11. f3 Nef6 12. Bd3 Qf4 13. c3 Qh4+ 14. g3 Qh3 15. Bf1 Qh5 16. Nc4 {1-0 (56) Da Costa,P-Lopes,M Juiz de Fora 1966}) 10... b5 {[%emt 0:04:55]} (10... Nxc3 $2 11. Qd2 $18) (10... Qc7 $142) 11. Qc2 {[%emt 0:32:44]} Nef6 {[%emt 0:02:02]} 12. Bd6 {Against Qc7} Bb7 {[%emt 0:06:18]} 13. Be2 {[%emt 0:01:40]} a6 {[%emt 0:12:22]} 14. O-O {[%emt 0:00:45]} c5 {[%emt 0:03:14]} (14... Qb6 $16 {was necessary.}) 15. dxc5 $18 {[%emt 0:03:53] Black must now prevent b4.} Ne4 {[%emt 0:00:31]} 16. Nd4 {[%emt 0:06:01]} ({Don't take} 16. b4 Qa3 17. Rfc1 Nxd6) (16. Bf4 $18) 16... Nxd6 $16 {[%emt 0:02:41]} 17. cxd6 {[%emt 0:00:02]} Qb6 {[%emt 0:00:46]} 18. Rad1 {[%emt 0:01:40] White is more active.} (18. a4 $16) 18... Rc8 {[%emt 0:05:03]} (18... O-O $1 $14) 19. Bf3 {[%emt 0:10:30]} ({White should try} 19. a4 $16) 19... O-O {[%emt 0:03:31]} 20. Bxb7 {[%emt 0:07:42]} Qxb7 {[%emt 0:00:01]} 21. Nf3 {[%emt 0:00:25]} Rc4 {[%emt 0:03:12]} 22. h3 {[%emt 0:07:07]} Rd8 {[%emt 0:03:05]} 23. Rd2 $36 {[%emt 0:01:34][%mdl 2048] White has the initiative.} Nf6 {[%emt 0:02:07]} 24. Rfd1 {[%emt 0:00:20]} Nd5 {[%emt 0:01:02]} 25. Rd4 {[%emt 0:03:20]} Rxd4 {[%emt 0:06:40]} 26. Rxd4 {[%emt 0:00:02] White wants to play b3.} Rxd6 {[%emt 0:01:07]} 27. Ng5 {[%emt 0:00:11]} f5 {[%emt 0:01:30]} (27... g6 $1 $11 {keeps the balance.}) 28. Qe2 {[%emt 0:00:37]} (28. c4 $5 {[%cal Rc4d5]} Qe7 29. Nxe6 Qxe6 30. cxd5 Rxd5 31. Rxd5 Qxd5 32. Qc8+ Kf7 33. Qxa6 $14) 28... Qe7 {[%emt 0:02:27] Blacks defense is rewarded with a draw.  Weighted Error Value: White=0.26 (precise) /Black=0.19 (very precise)} 1/2-1/2

[Event "Warsaw Chess Open-B 2022"]
[Site "Warsaw"]
[Date "2022.07.22"]
[Round "5.2"]
[White "Ryszkiewicz, Adam"]
[Black "Pawicka, Magdalena"]
[Result "0-1"]
[ECO "B40"]
[WhiteElo "1977"]
[BlackElo "1781"]
[Annotator "TA"]
[PlyCount "56"]
[EventDate "2022.07.18"]
[EventType "swiss"]
[EventCountry "POL"]
[SourceTitle "playchess.com"]
[Source "ChessBase"]
[SourceQuality "1"]
[TimeControl "40/5400+30:1800+30"]

{[%evp 21,56,33,29,43,32,15,17,-49,3,0,35,10,10,10,9,-72,-105,-115,-95,-95,-21,-33,-10,-12,-8,-8,-7,-5,-8,-132,-80,-80,-69,-203,-193,-501,-486]} 1. e4 {[%emt 0:00:03]} c5 {[%emt 0:00:23]} 2. Nf3 {[%emt 0:00:05]} e6 {[%emt 0:00:41]} 3. d4 {[%emt 0:00:05]} cxd4 {[%emt 0:00:07]} 4. Nxd4 {[%emt 0:00:05]} Nf6 {[%emt 0:00:44][%cal Bg8f6,Bf6d5,Bd5e3][%mdl 32]} 5. Nc3 {[%emt 0:00:05]} Nc6 {[%emt 0:00:11]} 6. Nxc6 {[%emt 0:00:05]} bxc6 {[%emt 0:00:24]} 7. e5 {[%emt 0:00:06]} Nd5 {[%emt 0:01:00]} 8. Ne4 {[%emt 0:00:07]} Qc7 {[%emt 0:00:25]} 9. f4 {[%emt 0:00:05]} Qb6 {[%emt 0:00:42]} 10. c4 {[%emt 0:00:07]} Ne3 {[%emt 0:01:09]} 11. Qd3 {[%emt 0:00:13]} Bb4+ {[%emt 0:01:27]} 12. Bd2 {[%emt 0:00:06] B45: Sicilian Four Knights.} Ba6 {[%emt 0:02:48]} 13. b3 {[%emt 0:08:52]} O-O {[%emt 0:19:22]} 14. Ng5 {[%emt 0:15:57] [#]} ({Better is} 14. Bxb4 $11 Qxb4+ 15. Nd2) 14... g6 $146 {[%emt 0:02:11]} (14... Bxd2+ $15 15. Kxd2 Nf5) ({Predecessor:} 14... Nf5 15. O-O-O d5 16. exd6 Bxd6 17. g4 Rad8 18. Qc2 Qd4 19. gxf5 Bxf4 20. Ne4 exf5 {½-½ (42) Velicka,P (2410)-Priehoda,V (2390) Prague 1992}) 15. Ne4 {[%emt 0:00:56]} Rad8 {Hoping for ...d5.} (15... f5 $5 {[%cal Rf5e4]} 16. Nf6+ Rxf6 17. exf6 d5 $15) 16. Bxb4 {[%emt 0:16:55]} (16. Rc1 $5 {[%cal Rd2b4]}) 16... Qxb4+ {[%emt 0:08:12]} 17. Kf2 {[%emt 0:00:08]} Ng4+ {[%emt 0:14:03]} 18. Kf3 {[%emt 0:11:18]} (18. Kg3 $1 $11 {remains equal.} Nh6 19. Rd1) 18... d5 $1 $17 {[%emt 0:06:50]} ({But not} 18... f5 19. Nd6 $11 (19. exf6 Nxf6 20. Qd2 Qb8 $17)) 19. Kxg4 {[%emt 0:09:52] Black must now prevent Qd2.} dxe4 {[%emt 0:00:42]} 20. Qxe4 {[%emt 0:00:35]} h5+ {[%emt 0:09:24]} ({Black should play} 20... f5+ $1 $17 21. exf6 Rxf6) 21. Kh4 $11 {[%emt 0:00:37]} c5 {[%emt 0:05:10][%mdl 1024] Strongly threatening ...Rd4. Black has compensation.} 22. Be2 {[%emt 0:06:27]} Rd4 {[%emt 0:02:53]} 23. Qe3 {[%emt 0:00:15]} Bb7 {[%emt 0:03:38]} 24. Rhd1 {[%emt 0:01:17]} Re4 $36 {[%emt 0:05:00][%mdl 2048] White is under pressure.} 25. Qf2 {[%emt 0:08:49] [#]} (25. Qd2 $1 $11 {keeps the balance.} Qxd2 26. Rxd2 Rxf4+ 27. Kg3) 25... Qc3 {[%emt 0:04:49]} (25... f6 $142 $1 26. Kh3 g5) 26. Bd3 $17 {[%emt 0:00:11] [#]} Rd4 {[%emt 0:01:09]} 27. Rac1 {[%emt 0:00:11]} (27. Qg3 $15) 27... Qa5 $19 {[%emt 0:00:37] aiming for ...Qd8+.} 28. h3 $2 {[%emt 0:05:08]} (28. Bc2 Rfd8 29. Rxd4 Rxd4 30. Re1) 28... Qd8+ {[%emt 0:00:21] Weighted Error Value: White=0.46/Black=0.13 (very precise)} 0-1

[Event "Warsaw Chess Open-B 2022"]
[Site "Warsaw"]
[Date "2022.07.22"]
[Round "5.3"]
[White "Bem, Tymoteusz"]
[Black "Smykalo, Severyn"]
[Result "1-0"]
[ECO "D31"]
[WhiteElo "1679"]
[BlackElo "1921"]
[Annotator "TA"]
[PlyCount "59"]
[EventDate "2022.07.18"]
[EventType "swiss"]
[EventCountry "POL"]
[SourceTitle "playchess.com"]
[Source "ChessBase"]
[SourceQuality "1"]
[TimeControl "40/5400+30:1800+30"]

{[%evp 16,59,0,0,25,16,30,-20,52,38,158,88,84,70,82,60,77,54,271,271,340,200,182,188,265,235,239,211,313,318,307,316,371,334,342,334,334,339,339,331,439,423,504,496,549,539]} 1. d4 {[%emt 0:00:17]} d5 {[%emt 0:00:27]} 2. c4 {[%emt 0:00:21]} e6 {[%emt 0:02:58]} 3. Nc3 {[%emt 0:00:30]} c6 {[%emt 0:00:09]} 4. e4 {[%emt 0:00:43]} dxe4 {[%emt 0:00:10]} 5. Nxe4 {[%emt 0:00:08]} Bb4+ {[%emt 0:00:07]} 6. Bd2 {[%emt 0:00:48]} Qxd4 {[%emt 0:00:18]} 7. Bxb4 {[%emt 0:00:07]} Qxe4+ {[%emt 0:00:08]} 8. Be2 {[%emt 0:00:02]} Na6 {[%emt 0:00:41]} 9. Ba5 {[%emt 0:00:35][%csl Ga5][%cal Rd1d8]} f6 {[%emt 0:05:25] D31: Queen's Gambit Declined: Semi-Slav without ...Nf6 (+ Marshall Gambit and Noteboom) and Exchange Variation lines without ...Nf6.} (9... Bd7 $5 {[%cal Re4g2]}) 10. Nf3 {[%emt 0:06:48][%mdl 1024] White has compensation.} b6 {[%emt 0:04:47]} 11. Bc3 {[%emt 0:05:03] was the old line (11.Nd2).} (11. Nd2 $142 $1 Qf5 12. Bh5+ (12. Bc3 Ne7 $11) 12... g6 13. Bf3) 11... Bb7 {[%emt 0:07:36]} (11... Ne7 $11) 12. O-O $14 {[%emt 0:09:16][%cal Of3g5] [#]} Rd8 $146 {[%emt 0:02:54] [#]} (12... c5 $1 $14) ({Predecessor:} 12... c5 13. Bd3 Qc6 14. Bc2 Kf7 15. Re1 Nh6 16. Be4 Qc8 17. Ng5+ Kg8 18. Bxb7 Qxb7 19. Nxe6 Nf7 20. Bxf6 gxf6 21. Qg4+ Ng5 22. Nxg5 h5 23. Qe6+ Kg7 24. Rad1 {1-0 (24) Hammer,J (2635)-Elsness,F (2465) Norway 2015}) 13. Nd2 {[%emt 0:03:17]} (13. Nd4 $142 $1) 13... Qf4 $16 {[%emt 0:03:15]} 14. Bh5+ {[%emt 0:11:08][%cal Be2h5,Bh5g4,Bg4h3][%mdl 32]} g6 {[%emt 0:00:35]} 15. Bg4 {Black must now prevent Re1.} Kf7 {[%emt 0:19:21]} 16. Qe2 {[%emt 0:06:51] Rad1 is the strong threat.} Nc7 $2 {[%emt 0:03:18] This move loses the game for Black.} ({Black should try} 16... Nc5 $14) 17. Rfe1 $18 {[%emt 0:10:31]} Bc8 {[%emt 0:15:47]} 18. Nf3 {[%emt 0:06:23]} Nh6 {[%emt 0:05:01]} (18... Qxg4 $2 19. Ne5+ fxe5 20. Qxg4 $18) 19. Bh3 {[%emt 0:03:20] A strong pair of Bishops.} Nf5 {[%emt 0:02:47] [#]} (19... Rhe8 {is a better defense.} 20. Rad1 Rxd1 21. Rxd1 Ng8 22. Ne5+ fxe5) 20. Ne5+ $1 {[%emt 0:03:44][%mdl 512]} fxe5 {[%emt 0:01:04]} 21. Bxe5 {[%emt 0:00:03]} ({Inferior is} 21. Qxe5 Qxe5 22. Bxe5 {[#]} Na6 $1 23. Bxh8 Rxh8 $17) 21... Qd2 {[%emt 0:00:36]} (21... Nd4 $142 22. Qd3 (22. Bxf4 Nxe2+ 23. Rxe2 Na6 $16) 22... Nf3+ 23. Qxf3 Qxf3 24. gxf3 Na6 25. Bxh8 Rxh8) 22. Qxd2 {[%emt 0:00:51] The board is on fire.} ({Worse is} 22. Bxc7 Qxe2 23. Rxe2 Rd7 $11) 22... Rxd2 {[%emt 0:00:21]} 23. Bxh8 {[%emt 0:00:02]} Ba6 {[%emt 0:01:16]} 24. Be5 {[%emt 0:02:24]} Ne8 {[%emt 0:00:12]} 25. Rad1 {[%emt 0:00:54]} Rxd1 {[%emt 0:00:14]} 26. Rxd1 {[%emt 0:00:02]} Ke7 {[%emt 0:00:12] Prevents Rd7+.} 27. b3 {[%emt 0:00:35]} Bc8 {[%emt 0:00:16]} 28. Bb8 {[%emt 0:03:35] White is clearly winning.} a6 {[%emt 0:00:02]} 29. Ba7 {[%emt 0:01:01]} b5 {[%emt 0:00:06]} 30. Bc5+ {Weighted Error Value: White=0.18 (very precise) /Black=0.61} 1-0

[Event "Warsaw Chess Open-B 2022"]
[Site "Warsaw"]
[Date "2022.07.22"]
[Round "5.4"]
[White "Kaminski, Jan"]
[Black "Rzenca, Jerzy"]
[Result "1-0"]
[ECO "B13"]
[WhiteElo "1870"]
[BlackElo "1668"]
[Annotator "NA RC COMBH"]
[PlyCount "77"]
[EventDate "2022.07.18"]
[EventType "swiss"]
[EventCountry "POL"]
[SourceTitle "playchess.com"]
[Source "ChessBase"]
[SourceQuality "1"]
[TimeControl "40/5400+30:1800+30"]

1. e4 {[%emt 0:00:01]} c6 {[%emt 0:00:07]} 2. d4 {[%emt 0:00:06]} d5 {[%emt 0:00:03]} 3. exd5 {[%emt 0:00:14]} cxd5 {[%emt 0:00:08]} 4. Bd3 {[%emt 0:00:04]} Nc6 {[%emt 0:00:08]} 5. c3 {[%emt 0:00:01]} Qc7 {[%emt 0:00:06]} 6. Ne2 {[%emt 0:00:23]} Bg4 {[%emt 0:00:10]} 7. O-O {[%emt 0:00:07]} Bxe2 {[%emt 0:07:16]} 8. Qxe2 {[%emt 0:00:13]} e6 {[%emt 0:00:02]} 9. Nd2 {[%emt 0:04:45]} Bd6 {[%emt 0:01:10]} 10. Nf3 {[%emt 0:00:32]} Nf6 {[%emt 0:01:19]} 11. Re1 {[%emt 0:00:34]} O-O {[%emt 0:00:40]} 12. Ne5 {[%emt 0:02:34]} Nd7 {[%emt 0:02:35]} 13. f4 {[%emt 0:01:36]} g6 {[%emt 0:11:41]} 14. g3 {[%emt 0:05:54]} Rfc8 {[%emt 0:06:00]} 15. Bd2 {[%emt 0:06:04]} Ndxe5 {[%emt 0:14:31]} 16. fxe5 {[%emt 0:00:30]} Bf8 {[%emt 0:00:04]} 17. Rf1 a6 {[%emt 0:10:13]} 18. Rf2 {[%emt 0:07:01]} Rd8 {[%emt 0:02:00]} 19. Raf1 {[%emt 0:00:59]} Rd7 {[%emt 0:00:34]} 20. Bg5 {[%emt 0:02:51]} b5 {[%emt 0:08:35]} 21. a3 {[%emt 0:00:31]} Na5 {[%emt 0:05:35]} 22. h4 {[%emt 0:02:43]} Bg7 {[%emt 0:17:50]} 23. Bf6 {[%emt 0:04:54]} Ra7 {[%emt 0:04:23]} 24. h5 {[%emt 0:03:32]} Qc8 {[%emt 0:00:40]} 25. Qg4 {[%emt 0:02:37]} Qe8 {[%emt 0:01:08]} 26. Rh2 {[%emt 0:01:02]} Nc4 {[%emt 0:00:38]} 27. Qh4 {[%emt 0:06:36]} Bh6 {[%emt 0:05:16]} 28. Kh1 {[%emt 0:04:10]} Be3 {[%emt 0:01:07]} 29. Re2 {[%emt 0:04:53]} Nd2 {[%emt 0:00:25]} 30. Rxe3 {[%emt 0:02:34]} Nxf1 {[%emt 0:00:02]} 31. Bxf1 {[%emt 0:00:01]} Rab7 {[%emt 0:00:27]} 32. Qg4 {[%emt 0:03:56]} Rb6 {[%emt 0:00:26]} 33. Rf3 {[%emt 0:01:20]} a5 {[%emt 0:00:25]} 34. b4 {[%emt 0:01:11]} axb4 {[%emt 0:00:19]} 35. axb4 {[%emt 0:00:06]} Ra7 {[%emt 0:00:04]} 36. Qf4 {[%emt 0:00:46]} Rbb7 {[%emt 0:00:49]} 37. Bg5 {[%emt 0:00:21]} Qf8 {[%emt 0:01:27]} 38. hxg6 {[%emt 0:00:24]} hxg6 {[%emt 0:00:00]} 39. Bf6 {[%emt 0:00:14]} 1-0